fUST/lending_fUST_20240925
["ID","MTS","AMOUNT","RATE_DAILY","PERIOD"]
[339152056,1727268640726,-2000.0,0.00016259,2]
[339152057,1727268640736,-1719.583193,0.00016259,2]
[339152058,1727268640746,-1000.0,0.00016267,2]
[339152059,1727268640756,-24535.6172713,0.00016269,2]
[339152060,1727268640766,-151.0,0.00016269,2]
[339152061,1727268640776,-317.894063,0.00016269,2]
[339152062,1727268640786,-317.894063,0.00016269,2]
[339152063,1727268640796,-1059.213921,0.00016269,2]
[339152064,1727268640806,-1059.213921,0.00016269,2]
[339152065,1727268640815,-500.0,0.00016273,2]
[339152066,1727268640825,-500.0,0.00016273,2]
[339152067,1727268640835,-544.69957545,0.00016273,2]
[339152068,1727268640845,-547.02224594,0.00016273,2]
[339152069,1727268640856,-500.95561803,0.00016273,2]
[339152070,1727268640866,-500.0,0.00016273,2]
[339152071,1727268640879,-500.0,0.00016273,2]
[339152072,1727268640890,-1790.91607081,0.00016275,2]
[339152073,1727268640901,-1000.0,0.00016276,2]
[339152074,1727268640911,-150.112235,0.000163,2]
[339152075,1727268640921,-150.112233,0.000163,2]
[339152076,1727268640931,-150.112233,0.000163,2]
[339152077,1727268640941,-2000.0,0.000163,2]
[339152078,1727268640953,-150.112233,0.000163,2]
[339152079,1727268640963,-150.112233,0.000163,2]
[339152080,1727268640972,-150.112233,0.000163,2]
[339152081,1727268640982,-1000.0,0.00016316,2]
[339152082,1727268640992,-504.898,0.00016328,2]
[339152083,1727268641001,-3000.0,0.00016338,2]
[339152084,1727268641011,-151.0,0.00016341,2]
[339152085,1727268641022,-243.501717,0.00016341,2]
[339152086,1727268641032,-243.501717,0.00016341,2]
[339152087,1727268641042,-151.0,0.00016341,2]
[339152088,1727268641052,-321.899335,0.00016341,2]
[339152089,1727268641062,-151.0,0.00016341,2]
[339152090,1727268641082,-321.899335,0.00016341,2]
[339152091,1727268641092,-562.106929,0.00016341,2]
[339152092,1727268641102,-562.106929,0.00016341,2]
[339152093,1727268641118,-295.235076,0.00016341,2]
[339152094,1727268641128,-295.235076,0.00016341,2]
[339152095,1727268641138,-151.0,0.00016341,2]
[339152096,1727268641148,-151.0,0.00016341,2]
[339152097,1727268641159,-1149.097332,0.00016341,2]
[339152098,1727268641170,-1149.097332,0.00016341,2]
[339152099,1727268641180,-36763.57771097,0.00016342,2]
[339152100,1727268641194,-4161.75164113,0.00016342,2]
[339152101,1727268641205,-160.0,0.00016351,2]
[339152102,1727268641215,-250.312874,0.00016352,2]
[339152103,1727268641226,-250.312874,0.00016352,2]
[339152104,1727268641237,-250.312874,0.00016352,2]
[339152105,1727268641248,-250.312874,0.00016352,2]
[339152106,1727268641259,-250.312874,0.00016352,2]
[339152107,1727268641269,-250.312874,0.00016352,2]
[339152108,1727268641279,-151.0,0.00016352,2]
[339152109,1727268641289,-151.0,0.00016352,2]
[339152110,1727268641299,-151.0,0.00016352,2]
[339152111,1727268641310,-151.0,0.00016352,2]
[339152112,1727268641322,-151.0,0.00016352,2]
[339152113,1727268641333,-151.0,0.00016352,2]
[339152114,1727268641343,-362.538482,0.00016352,2]
[339152115,1727268641353,-362.538482,0.00016352,2]
[339152116,1727268641364,-362.538482,0.00016352,2]
[339152117,1727268641374,-362.538482,0.00016352,2]
[339152118,1727268641385,-362.538482,0.00016352,2]
[339152119,1727268641394,-362.538482,0.00016352,2]
[339152120,1727268641404,-317.894063,0.00016352,2]
[339152121,1727268641414,-317.894063,0.00016352,2]
[339152122,1727268641424,-317.894063,0.00016352,2]
[339152123,1727268641433,-317.894063,0.00016352,2]
[339152124,1727268641443,-317.894063,0.00016352,2]
[339152125,1727268641454,-317.894063,0.00016352,2]
[339152126,1727268641464,-151.0,0.00016352,2]
[339152127,1727268641474,-151.0,0.00016352,2]
[339152128,1727268641484,-151.0,0.00016352,2]
[339152129,1727268641494,-930.83780217,0.00016352,2]
[339152130,1727268641507,-128.37611883,0.00016352,2]
[339152131,1727268641517,-1059.213921,0.00016352,2]
[339152132,1727268641529,-1059.213921,0.00016352,2]
[339152133,1727268641539,-303.21603917,0.00016352,2]
[339152169,1727268643172,-511.33648474,0.00016352,2]
[339152175,1727268643228,-244.66139709,0.00016352,2]
[339152177,1727268643239,-1059.213921,0.00016352,2]
[339152179,1727268643249,-1059.213921,0.00016352,2]
[339152181,1727268643259,-151.0,0.00016362,2]
[339152183,1727268643269,-151.0,0.00016362,2]
[339152185,1727268643279,-151.0,0.00016362,2]
[339152187,1727268643288,-151.0,0.00016362,2]
[339152189,1727268643299,-151.0,0.00016362,2]
[339152191,1727268643310,-151.0,0.00016362,2]
[339152194,1727268643324,-151.0,0.00016362,2]
[339152196,1727268643334,-251.754358,0.00016362,2]
[339152199,1727268643344,-251.754358,0.00016362,2]
[339152202,1727268643354,-151.0,0.00016362,2]
[339152205,1727268643364,-151.0,0.00016362,2]
[339152209,1727268643375,-527.116814,0.00016362,2]
[339152213,1727268643385,-527.116814,0.00016362,2]
[339152216,1727268643395,-527.116814,0.00016362,2]
[339152218,1727268643405,-527.116814,0.00016362,2]
[339152220,1727268643415,-991.127498,0.00016362,2]
[339152222,1727268643425,-991.127498,0.00016362,2]
[339152224,1727268643435,-48.47887218,0.00016362,2]
[339154316,1727268746732,500.0,0.00013014,2]
[339154320,1727269289708,500.0,0.00013014,2]
[339154326,1727269746326,-187.58168718,0.00014646,2]
[339154468,1727269833329,500.0,0.00013014,2]
[339154494,1727269838579,-300.0,0.00014646,2]
[339154496,1727269838590,-300.0,0.00014646,2]
[339154498,1727269838599,-8285.3833668,0.00014647,2]
[339154509,1727269838683,-16614.6166332,0.00014647,2]
[339154511,1727269838693,-163.399025,0.00014931,2]
[339154513,1727269838702,-161.695054,0.00015108,2]
[339154515,1727269838712,-161.695054,0.0001537,2]
[339154517,1727269838722,-184.36609895,0.00015383,2]
[339154519,1727269838733,-161.695054,0.00015632,2]
[339154521,1727269838743,-306.0,0.00015753,2]
[339154523,1727269838752,-161.695054,0.00015895,2]
[339154526,1727269838762,-7245.74021184,0.00015935,2]
[339154692,1727269840291,-93.51967227,0.00015935,2]
[339154694,1727269840302,-1000.0,0.00016,16]
[339154696,1727269840312,-2000.0,0.00016,2]
[339154698,1727269840322,-1217.0,0.00016032,2]
[339154700,1727269840332,-420.0,0.00016035,2]
[339154702,1727269840342,-7146.18197968,0.0001604,2]
[339154704,1727269840352,-600.0,0.00016044,2]
[339154706,1727269840364,-153.0,0.000161,2]
[339154709,1727269840374,-153.0,0.000161,2]
[339154711,1727269840383,-420.0,0.00016111,2]
[339154713,1727269840393,-500.0,0.00016138,2]
[339154715,1727269840403,-500.0,0.00016138,2]
[339154717,1727269840413,-500.0,0.00016138,2]
[339154719,1727269840423,-500.0,0.00016138,2]
[339154721,1727269840434,-362.81726634,0.00016138,2]
[339154723,1727269840446,-500.0,0.00016138,2]
[339154725,1727269840457,-500.0,0.00016138,2]
[339154727,1727269840468,-500.0,0.00016138,2]
[339154729,1727269840478,-500.0,0.00016138,2]
[339154731,1727269840488,-500.0,0.00016138,2]
[339154733,1727269840498,-500.0,0.00016138,2]
[339154736,1727269840508,-500.0,0.00016138,2]
[339154738,1727269840518,-500.0,0.00016138,2]
[339154740,1727269840527,-500.0,0.00016138,2]
[339154742,1727269840538,-500.0,0.00016138,2]
[339154744,1727269840548,-500.0,0.00016138,2]
[339154746,1727269840557,-500.0,0.00016138,2]
[339154748,1727269840568,-500.0,0.00016138,2]
[339154750,1727269840578,-500.0,0.00016138,2]
[339154752,1727269840587,-500.0,0.00016138,2]
[339154754,1727269840597,-500.0,0.00016138,2]
[339154756,1727269840607,-500.0,0.00016138,2]
[339154758,1727269840617,-500.0,0.00016138,2]
[339154760,1727269840627,-500.0,0.00016138,2]
[339154762,1727269840637,-500.0,0.00016138,2]
[339154765,1727269840648,-500.0,0.00016138,2]
[339154767,1727269840659,-500.0,0.00016138,2]
[339154807,1727269841014,-500.0,0.00016138,2]
[339154809,1727269841027,-661.43334946,0.00016139,2]
[339154811,1727269841037,-1000.0,0.00016149,2]
[339154813,1727269841047,-600.76193149,0.00016163,2]
[339154815,1727269841057,-153.0,0.00016164,2]
[339154817,1727269841066,-209.0875088,0.00016164,2]
[339154819,1727269841075,-209.0875088,0.00016164,2]
[339154821,1727269841085,-153.0,0.00016164,2]
[339154823,1727269841094,-153.0,0.00016164,2]
[339154825,1727269841103,-153.0,0.00016164,2]
[339154827,1727269841114,-153.0,0.00016164,2]
[339154830,1727269841124,-153.0,0.00016164,2]
[339154832,1727269841134,-209.0875088,0.00016164,2]
[339154834,1727269841144,-153.0,0.00016164,2]
[339154836,1727269841154,-153.0,0.00016164,2]
[339154838,1727269841163,-153.0,0.00016164,2]
[339154840,1727269841173,-209.0875088,0.00016164,2]
[339154842,1727269841182,-153.0,0.00016164,2]
[339154844,1727269841192,-153.0,0.00016164,2]
[339154846,1727269841202,-209.0875088,0.00016164,2]
[339154848,1727269841211,-153.0,0.00016164,2]
[339154850,1727269841221,-209.0875088,0.00016164,2]
[339154852,1727269841231,-153.0,0.00016164,2]
[339154854,1727269841241,-153.0,0.00016164,2]
[339154856,1727269841250,-457.721239,0.00016164,2]
[339154858,1727269841260,-153.0,0.00016164,2]
[339154860,1727269841270,-153.0,0.00016164,2]
[339154862,1727269841280,-153.0,0.00016164,2]
[339154864,1727269841291,-153.0,0.00016164,2]
[339154866,1727269841300,-1000.0,0.00016168,2]
[339154868,1727269841309,-661.43334944,0.00016169,2]
[339154870,1727269841319,-500.0,0.00016172,2]
[339154873,1727269841328,-500.0,0.00016193,2]
[339154875,1727269841338,-661.43334944,0.00016199,2]
[339154877,1727269841347,-153.0,0.000162,2]
[339154879,1727269841356,-209.0875088,0.000162,2]
[339154881,1727269841365,-153.0,0.000162,2]
[339154883,1727269841375,-153.0,0.000162,2]
[339154885,1727269841384,-153.0,0.000162,2]
[339154887,1727269841394,-153.0,0.000162,2]
[339154888,1727269841404,-209.0875088,0.000162,2]
[339154889,1727269841413,-600.0,0.00016211,2]
[339154890,1727269841423,-661.43334944,0.00016228,2]
[339154891,1727269841432,-65050.40427454,0.00016229,2]
[339154892,1727269841448,-5353.68482906,0.00016229,2]
[339154893,1727269841458,-4506.2448147,0.00016229,2]
[339154894,1727269841467,-255.496386,0.00016238,2]
[339154895,1727269841478,-255.496386,0.00016238,2]
[339154896,1727269841487,-255.056118,0.00016238,2]
[339154897,1727269841497,-255.056118,0.00016238,2]
[339154898,1727269841507,-889.590805,0.00016238,2]
[339154899,1727269841518,-889.590805,0.00016238,2]
[339154900,1727269841530,-35202.0445518,0.00016238,2]
[339154901,1727269841539,-2253.12240735,0.00016238,2]
[339154902,1727269841549,-1000.0,0.0001624,2]
[339154903,1727269841560,-500.0,0.00016243,2]
[339154905,1727269841569,-500.0,0.00016243,2]
[339154906,1727269841579,-425.66271701,0.00016243,2]
[339154908,1727269841588,-341.63786423,0.00016243,2]
[339154910,1727269841599,-208.25736738,0.00016243,2]
[339154912,1727269841610,-500.0,0.00016243,2]
[339154914,1727269841620,-500.0,0.00016243,2]
[339154916,1727269841630,-500.0,0.00016243,2]
[339154918,1727269841640,-247.28993904,0.00016243,2]
[339154920,1727269841650,-500.0,0.00016243,2]
[339154923,1727269841659,-500.0,0.00016243,2]
[339154925,1727269841669,-500.0,0.00016243,2]
[339154927,1727269841679,-268.1519589,0.00016243,2]
[339154929,1727269841688,-500.0,0.00016243,2]
[339154931,1727269841697,-500.0,0.00016243,2]
[339154933,1727269841707,-500.0,0.00016243,2]
[339154935,1727269841716,-500.0,0.00016243,2]
[339154937,1727269841726,-500.0,0.00016243,2]
[339154939,1727269841737,-1958.20254046,0.00016245,2]
[339154941,1727269841747,-162.582834,0.00016248,2]
[339154943,1727269841756,-248.753046,0.00016248,2]
[339154945,1727269841766,-248.753046,0.00016248,2]
[339154947,1727269841775,-332.820888,0.00016248,2]
[339154949,1727269841784,-332.820888,0.00016248,2]
[339154951,1727269841793,-1160.89621652,0.00016248,2]
[339154953,1727269841802,-19680.33513103,0.00016249,2]
[339155193,1727269844213,4651.0,0.00015,10]
[339159740,1727270417226,500.0,0.00013014,2]
[339159754,1727270739906,247.04,0.00010959,2]
[339159766,1727270957954,9999.97,0.00014,2]
[339159771,1727270974893,500.0,0.00013014,2]
[339160629,1727271040539,-193.07784012,0.00014598,2]
[339160632,1727271040550,-388.858567,0.00014698,2]
[339160634,1727271040564,-172.26889639,0.00014884,2]
[339160636,1727271040574,-300.0,0.00014943,2]
[339160638,1727271040584,-300.0,0.00014943,2]
[339160640,1727271040593,-24900.0,0.00014944,2]
[339160642,1727271040603,-388.858567,0.00015383,2]
[339160644,1727271040613,-153.0,0.000154,2]
[339160646,1727271040623,-153.0,0.000154,2]
[339160648,1727271040633,-153.0,0.00015441,2]
[339160650,1727271040643,-153.0,0.0001589,2]
[339160652,1727271040653,-153.0,0.0001589,2]
[339160654,1727271040663,-153.0,0.0001589,2]
[339160656,1727271040673,-150.0,0.00015911,2]
[339160659,1727271040683,-6421.85239857,0.00015944,2]
[339160661,1727271040694,-153.0,0.00016,2]
[339160663,1727271040703,-153.0,0.00016,2]
[339160665,1727271040713,-418.1750176,0.00016,2]
[339160667,1727271040723,-1000.0,0.00016,16]
[339160669,1727271040733,-7146.18197968,0.00016033,2]
[339160672,1727271040746,-600.0,0.00016044,2]
[339160674,1727271040756,-184.0,0.0001606,2]
[339160676,1727271040766,-388.858567,0.00016068,2]
[339160678,1727271040776,-646.99374737,0.00016083,2]
[339160680,1727271040786,-500.0,0.00016099,2]
[339160682,1727271040797,-500.0,0.00016099,2]
[339160684,1727271040806,-500.0,0.00016099,2]
[339160686,1727271040816,-386.28172664,0.00016099,2]
[339160688,1727271040825,-304.1727983,0.000161,2]
[339160690,1727271040835,-412.035487,0.000161,2]
[339160692,1727271040845,-153.0,0.000161,2]
[339160694,1727271040855,-412.035487,0.000161,2]
[339160696,1727271040864,-855.5131873,0.000161,2]
[339160698,1727271040874,-209.0875088,0.000161,2]
[339160700,1727271040883,-418.1750176,0.000161,2]
[339160702,1727271040892,-307.2386274,0.000161,2]
[339160704,1727271040903,-153.0,0.000161,2]
[339160706,1727271040913,-412.035487,0.000162,2]
[339160708,1727271040922,-412.035487,0.000162,2]
[339160710,1727271040931,-1768.92479269,0.00016208,2]
[339160712,1727271040941,-600.0,0.00016211,2]
[339160714,1727271040951,-1000.0,0.00016218,2]
[339160716,1727271040960,-19459.2019184,0.00016229,2]
[339160718,1727271040973,-1658.77657503,0.00016229,2]
[339160720,1727271040985,-664.697168,0.00016229,2]
[339161013,1727271043777,-1298.53857124,0.00016229,2]
[339161015,1727271043789,-1754.8937024,0.00016229,2]
[339163718,1727271667918,500.0,0.00013014,2]
[339163722,1727272012128,-228.44617515,0.00014881,2]
[339163819,1727272231722,-30.79286885,0.00014881,2]
[339163821,1727272231732,-250.000002,0.00014977,2]
[339163823,1727272231741,-15.50916287,0.00015188,2]
[339163828,1727272231778,-284.49083713,0.00015188,2]
[339163830,1727272231788,-300.0,0.00015188,2]
[339163832,1727272231798,-1602.88915327,0.00015189,2]
[339164024,1727272239480,-2571.75,0.00015189,2]
[339164363,1727272242834,-25.38290835,0.00015189,2]
[339164620,1727272245887,-3.0,0.00015189,2]
[339168219,1727272352947,500.0,0.00013014,2]
[339168224,1727272618025,9309.70795146,0.00022,120]
[339168225,1727272618059,690.29204854,0.00022,120]
[339168226,1727272674866,1000.0,0.00021,60]
[339168227,1727272722789,-300.0,0.00014773,2]
[339168228,1727272722813,-300.0,0.00014773,2]
[339168229,1727272722838,-10543.1488494,0.00014774,2]
[339168230,1727272722860,-389.168737,0.00014852,2]
[339168231,1727272722884,-1000.0,0.00015,9]
[339168232,1727272722909,-500.0,0.00015374,2]
[339168233,1727272722932,-389.168737,0.00015537,2]
[339168234,1727272722955,-153.0,0.000156,2]
[339168235,1727272722978,-153.0,0.000156,2]
[339168236,1727272723002,-153.0,0.000156,2]
[339168237,1727272723024,-1800.0,0.0001565,2]
[339168238,1727272723046,-153.0,0.000157,2]
[339168239,1727272723327,-55271.02359272,0.00015889,2]
[339168240,1727272723351,-6759.24929346,0.00015889,2]
[339168241,1727272723373,-2124.96387696,0.0001589,2]
[339168242,1727272723396,-250.95143391,0.0001589,2]
[339168243,1727272723418,-150.0,0.00015899,2]
[339168244,1727272723440,-2124.96387695,0.00015935,2]
[339168245,1727272723463,-306.0,0.00015964,2]
[339168246,1727272723486,-306.0,0.00015964,2]
[339168247,1727272723509,-153.0,0.00015964,2]
[339168248,1727272723531,-326.74692344,0.00015973,2]
[339168249,1727272723553,-500.0,0.00015973,2]
[339168250,1727272723574,-500.79771524,0.00015973,2]
[339168251,1727272723597,-501.1343822,0.00015973,2]
[339168252,1727272723619,-500.0,0.00015973,2]
[339168253,1727272723640,-500.0,0.00015973,2]
[339168254,1727272723661,-500.0,0.00015973,2]
[339168255,1727272723683,-500.0,0.00015973,2]
[339168256,1727272723725,-500.0,0.00015979,2]
[339168257,1727272723760,-500.0,0.00015979,2]
[339168258,1727272723787,-500.0,0.00015979,2]
[339168259,1727272723814,-386.28172664,0.00015979,2]
[339168260,1727272723838,-2124.96387695,0.00015979,2]
[339168261,1727272723862,-32191.1983756,0.0001598,2]
[339168262,1727272723887,-2078.4551279,0.0001598,2]
[339168263,1727272723912,-96573.5951269,0.0001598,2]
[339168264,1727272723937,-6235.3653837,0.0001598,2]
[339168265,1727272723960,-239.14650496,0.00015989,2]
[339168266,1727272723985,-500.0,0.00015989,2]
[339168267,1727272724009,-647.96390191,0.00015989,2]
[339168268,1727272724034,-500.0,0.00015989,2]
[339168269,1727272724059,-500.0,0.00015989,2]
[339168270,1727272724084,-500.0,0.00015989,2]
[339168271,1727272724109,-500.0,0.00015989,2]
[339168272,1727272724138,-537.70637123,0.00015989,2]
[339168273,1727272724162,-500.0,0.00015989,2]
[339168274,1727272724186,-500.0,0.00015989,2]
[339168275,1727272724209,-500.0,0.00015989,2]
[339168276,1727272724232,-523.10295733,0.00015989,2]
[339168277,1727272724256,-773.93081101,0.0001599,2]
[339168278,1727272724279,-184.0,0.0001599,2]
[339168279,1727272724303,-226.578922,0.0001599,2]
[339168280,1727272724327,-226.578922,0.0001599,2]
[339168281,1727272724351,-226.578922,0.0001599,2]
[339168282,1727272724380,-226.578922,0.0001599,2]
[339168283,1727272724405,-741.449745,0.0001599,2]
[339168284,1727272724430,-741.449745,0.0001599,2]
[339168285,1727272724454,-741.449745,0.0001599,2]
[339168286,1727272724479,-741.449745,0.0001599,2]
[339168287,1727272724505,-151.0,0.0001599,2]
[339168288,1727272724529,-151.0,0.0001599,2]
[339168289,1727272724553,-151.0,0.0001599,2]
[339168290,1727272724578,-467.029499,0.0001599,2]
[339168291,1727272724605,-467.029499,0.0001599,2]
[339168292,1727272724629,-467.029499,0.0001599,2]
[339168293,1727272724654,-467.029499,0.0001599,2]
[339168294,1727272724677,-467.029499,0.0001599,2]
[339168295,1727272724701,-467.029499,0.0001599,2]
[339168296,1727272724724,-151.0,0.0001599,2]
[339168297,1727272724748,-151.0,0.0001599,2]
[339168298,1727272724771,-155.709969,0.0001599,2]
[339168299,1727272724795,-272.148978,0.0001599,2]
[339168300,1727272724819,-272.148978,0.0001599,2]
[339168301,1727272724843,-272.148978,0.0001599,2]
[339168302,1727272724868,-151.0,0.0001599,2]
[339168303,1727272724891,-151.0,0.0001599,2]
[339168304,1727272724915,-151.0,0.0001599,2]
[339168305,1727272724940,-272.148978,0.0001599,2]
[339168306,1727272724964,-272.148978,0.0001599,2]
[339168307,1727272724990,-272.148978,0.0001599,2]
[339168308,1727272725014,-55225.07691859,0.0001599,2]
[339168310,1727272943657,500.0,0.00013014,2]
[339168314,1727273159164,411.74,0.00010959,2]
[339168381,1727273432242,-194.584368,0.00014937,2]
[339168383,1727273432252,-105.60478123,0.0001565,2]
[339168462,1727273440002,-1594.39521877,0.0001565,2]
[339168464,1727273440011,-500.0,0.00015693,2]
[339168466,1727273440021,-6882.40460427,0.00015834,2]
[339168468,1727273440031,-300.0,0.00015868,2]
[339168470,1727273440041,-300.0,0.00015868,2]
[339168472,1727273440051,-1000.0,0.0001589,2]
[339168474,1727273440062,-1826.94512127,0.0001589,2]
[339168476,1727273440073,-12497.08823391,0.0001589,2]
[339168478,1727273440084,-1000.0,0.000159,2]
[339168480,1727273440094,-327.7212305,0.00015968,2]
[339168482,1727273440103,-500.0,0.00015969,2]
[339168484,1727273440113,-500.0,0.00015969,2]
[339168487,1727273440123,-500.0,0.00015969,2]
[339168489,1727273440133,-500.0,0.00015969,2]
[339168491,1727273440142,-500.0,0.00015969,2]
[339168493,1727273440152,-500.0,0.00015969,2]
[339168495,1727273440163,-500.0,0.00015969,2]
[339168497,1727273440173,-500.0,0.00015969,2]
[339168499,1727273440183,-500.0,0.00015969,2]
[339168501,1727273440193,-500.0,0.00015969,2]
[339168503,1727273440203,-165.16371236,0.00015969,2]
[339168506,1727273440214,-500.0,0.00015969,2]
[339168508,1727273440224,-500.0,0.00015969,2]
[339168510,1727273440234,-500.0,0.00015969,2]
[339168512,1727273440245,-500.0,0.00015969,2]
[339168514,1727273440256,-500.0,0.00015969,2]
[339168516,1727273440266,-500.0,0.00015969,2]
[339168518,1727273440275,-500.0,0.00015969,2]
[339168520,1727273440285,-500.0,0.00015969,2]
[339168522,1727273440295,-500.0,0.00015969,2]
[339168524,1727273440304,-500.0,0.00015969,2]
[339168527,1727273440314,-500.0,0.00015969,2]
[339168529,1727273440324,-500.0,0.00015969,2]
[339168531,1727273440335,-500.0,0.00015969,2]
[339168533,1727273440345,-500.0,0.00015969,2]
[339168535,1727273440354,-500.0,0.00015969,2]
[339168537,1727273440364,-500.0,0.00015969,2]
[339168539,1727273440373,-500.0,0.00015969,2]
[339168541,1727273440383,-500.0,0.00015969,2]
[339168543,1727273440393,-500.0,0.00015969,2]
[339168545,1727273440402,-500.0,0.00015969,2]
[339168547,1727273440412,-453.57473134,0.00015969,2]
[339168549,1727273440422,-167.40255347,0.00015969,2]
[339168551,1727273440431,-366.17207013,0.00015969,2]
[339168553,1727273440441,-500.0,0.00015969,2]
[339168555,1727273440451,-500.0,0.00015969,2]
[339168557,1727273440460,-573.4761219,0.00015969,2]
[339168559,1727273440471,-500.0,0.00015969,2]
[339168561,1727273440481,-602.91833796,0.00015969,2]
[339168563,1727273440491,-396.71259301,0.00015969,2]
[339168566,1727273440501,-500.0,0.00015969,2]
[339168568,1727273440513,-250.63655381,0.00015969,2]
[339168570,1727273440523,-500.0,0.00015969,2]
[339168572,1727273440533,-320.26711673,0.00015969,2]
[339168574,1727273440546,-500.0,0.00015969,2]
[339168576,1727273440556,-500.0,0.00015969,2]
[339168578,1727273440565,-500.0,0.00015969,2]
[339168580,1727273440574,-33834.51784577,0.0001597,2]
[339168585,1727273440606,-500.0,0.00015969,2]
[339168587,1727273440615,-1851.71418294,0.0001597,2]
[339168589,1727273440627,-898.8,0.0001597,2]
[339168677,1727273441440,-3196.40233735,0.0001597,2]
[339168680,1727273441460,-500.0,0.00015969,2]
[339168682,1727273441470,-11316.13473134,0.0001597,2]
[339168684,1727273441480,-1096.40198226,0.0001597,2]
[339168687,1727273441491,-22991.7048546,0.0001597,2]
[339168689,1727273441501,-102195.138195,0.0001597,2]
[339168691,1727273441511,-544.69957545,0.00015973,2]
[339168693,1727273441521,-547.02224594,0.00015973,2]
[339168695,1727273441531,-500.95561803,0.00015973,2]
[339168697,1727273441542,-500.0,0.00015973,2]
[339168699,1727273441552,-500.0,0.00015973,2]
[339168701,1727273441563,-500.5,0.00015973,2]
[339168703,1727273441575,-500.0,0.00015973,2]
[339168706,1727273441588,-151.0,0.00015979,2]
[339168708,1727273441598,-51097.5690974,0.00015979,2]
[339168710,1727273441608,-46547.85088954,0.00015979,2]
[339168712,1727273441618,-129750.85121291,0.00015979,2]
[339168714,1727273441629,-68975.1145637,0.0001598,2]
[339168716,1727273441639,-153292.707292,0.0001598,2]
[339168718,1727273441649,-151.0,0.0001598,2]
[339168720,1727273441660,-151.0,0.0001598,2]
[339168722,1727273441670,-151.0,0.0001598,2]
[339168724,1727273441680,-91966.8194182,0.0001598,2]
[339168727,1727273441690,-151.0,0.0001599,2]
[339168729,1727273441700,-151.0,0.0001599,2]
[339168731,1727273441709,-151.0,0.0001599,2]
[339168733,1727273441719,-151.0,0.0001599,2]
[339168735,1727273441729,-151.0,0.0001599,2]
[339168737,1727273441739,-151.0,0.0001599,2]
[339168739,1727273441750,-151.0,0.0001599,2]
[339168741,1727273441761,-151.0,0.0001599,2]
[339168743,1727273441771,-151.0,0.0001599,2]
[339168746,1727273441785,-185.414543,0.0001599,2]
[339168748,1727273441796,-185.414543,0.0001599,2]
[339168750,1727273441807,-185.414543,0.0001599,2]
[339168752,1727273441817,-185.414543,0.0001599,2]
[339168754,1727273441827,-185.414543,0.0001599,2]
[339168756,1727273441840,-185.414543,0.0001599,2]
[339168758,1727273441850,-223.877741,0.0001599,2]
[339168761,1727273441861,-223.877741,0.0001599,2]
[339168763,1727273441871,-223.877741,0.0001599,2]
[339168765,1727273441881,-223.877741,0.0001599,2]
[339168767,1727273441891,-223.877741,0.0001599,2]
[339168769,1727273441903,-223.877741,0.0001599,2]
[339168771,1727273441914,-2481.765256,0.0001599,2]
[339168773,1727273441924,-2481.765256,0.0001599,2]
[339168776,1727273441934,-2481.765256,0.0001599,2]
[339168778,1727273441944,-2481.765256,0.0001599,2]
[339168780,1727273441956,-2481.765256,0.0001599,2]
[339168782,1727273441966,-2481.765256,0.0001599,2]
[339168784,1727273441977,-151.0,0.0001599,2]
[339168786,1727273441987,-151.0,0.0001599,2]